[Event "Titled Tuesday Blitz August 08 Early 2023"]
[White "Firouzja, Alireza"]
[Black "Fedoseev, Vladimir"]
[WhiteFideId "12573981"]
[BlackFideId "24130737"]
[WhiteElo "3106"]
[BlackElo "3091"]
[Result "0-1"]
[Round "10"]
[TimeControl "180+1"]
[Date "2023.08.08"]
[WhiteClock "0:00:00"]
[BlackClock "0:01:37"]
[Board "2"]

1. e4 {[%clk 0:03:00]}  c5 {[%clk 0:02:58]} 2. Nf3 {[%clk 0:03:00]}  Nc6 {[%clk 0:02:58]} 3. Bb5 {[%clk 0:03:00]}  g6 {[%clk 0:02:58]} 4. O-O {[%clk 0:02:59]}  Bg7 {[%clk 0:02:57]} 5. Bxc6 {[%clk 0:03:00]}  bxc6 {[%clk 0:02:51]} 6. Re1 {[%clk 0:03:00]}  Nh6 {[%clk 0:02:47]} 7. c3 {[%clk 0:02:58]}  O-O {[%clk 0:02:46]} 8. h3 {[%clk 0:02:54]}  f6 {[%clk 0:02:43]} 9. d4 {[%clk 0:02:49]}  cxd4 {[%clk 0:02:43]} 10. cxd4 {[%clk 0:02:49]}  Nf7 {[%clk 0:02:43]} 11. Nc3 {[%clk 0:02:46]}  d6 {[%clk 0:02:43]} 12. Be3 {[%clk 0:02:44]}  Bd7 {[%clk 0:02:41]} 13. Rc1 {[%clk 0:02:39]}  e5 {[%clk 0:02:41]} 14. Qd2 {[%clk 0:02:25]}  Qe7 {[%clk 0:02:38]} 15. b4 {[%clk 0:02:22]}  Rfb8 {[%clk 0:02:38]} 16. a3 {[%clk 0:02:11]}  a5 {[%clk 0:02:33]} 17. bxa5 {[%clk 0:02:01]}  Rxa5 {[%clk 0:02:30]} 18. dxe5 {[%clk 0:01:51]}  fxe5 {[%clk 0:02:29]} 19. Nd5 {[%clk 0:01:12]}  Qd8 {[%clk 0:02:28]} 20. Nb4 {[%clk 0:01:03]}  c5 {[%clk 0:02:26]} 21. Nd5 {[%clk 0:01:00]}  Rxa3 {[%clk 0:02:25]} 22. Ra1 {[%clk 0:00:47]}  Rab3 {[%clk 0:02:19]} 23. Ra7 {[%clk 0:00:40]}  h6 {[%clk 0:02:17]} 24. Kh2 {[%clk 0:00:35]}  R3b7 {[%clk 0:02:14]} 25. Rea1 {[%clk 0:00:32]}  Be6 {[%clk 0:02:13]} 26. Qd3 {[%clk 0:00:31]}  Kh7 {[%clk 0:02:11]} 27. Nd2 {[%clk 0:00:29]}  Qd7 {[%clk 0:02:06]} 28. Rxb7 {[%clk 0:00:25]}  Qxb7 {[%clk 0:02:05]} 29. Nc4 {[%clk 0:00:21]}  Bxd5 {[%clk 0:02:04]} 30. Qxd5 {[%clk 0:00:22]}  Qxd5 {[%clk 0:02:04]} 31. exd5 {[%clk 0:00:23]}  Rb4 {[%clk 0:02:03]} 32. Nxd6 {[%clk 0:00:15]}  e4 {[%clk 0:01:53]} 33. Ra7 {[%clk 0:00:15]}  Nxd6 {[%clk 0:01:51]} 34. Bxc5 {[%clk 0:00:15]}  Rb7 {[%clk 0:01:51]} 35. Ra6 {[%clk 0:00:09]}  Be5+ {[%clk 0:01:51]} 36. g3 {[%clk 0:00:09]}  Rd7 {[%clk 0:01:50]} 37. Ra4 {[%clk 0:00:08]}  Nf5 {[%clk 0:01:50]} 38. Rxe4 {[%clk 0:00:07]}  Rxd5 {[%clk 0:01:50]} 39. Rc4 {[%clk 0:00:04]}  Rd2 {[%clk 0:01:40]} 40. Kg1 {[%clk 0:00:04]}  Bd4 {[%clk 0:01:39]} 41. Bxd4 {[%clk 0:00:04]}  Nxd4 {[%clk 0:01:40]} 42. Kg2 {[%clk 0:00:04]}  h5 {[%clk 0:01:39]} 43. g4 {[%clk 0:00:02]}  h4 {[%clk 0:01:38]} 44. Rc7+ {[%clk 0:00:02]}  Kg8 {[%clk 0:01:38]} 45. Rc8+ {[%clk 0:00:02]}  Kg7 {[%clk 0:01:38]} 46. Rc7+ {[%clk 0:00:02]}  Kf6 {[%clk 0:01:39]} 47. Rh7 {[%clk 0:00:02]}  g5 {[%clk 0:01:37]} 48. Rh6+ {[%clk 0:00:02]}  Ke5 {[%clk 0:01:37]} 49. Rh8 {[%clk 0:00:02]}  Ne6 {[%clk 0:01:37]} 50. Re8 {[%clk 0:00:00]}  Kf6 {[%clk 0:01:37]} 0-1


[Site "https://www.chess.com"]

[Event "Titled Tuesday Blitz August 08 Early 2023"]
[White "Lazavik, Denis"]
[Black "Sjugirov, Sanan"]
[WhiteFideId "13515110"]
[BlackFideId "4189302"]
[WhiteElo "3052"]
[BlackElo "2945"]
[Result "1-0"]
[Round "10"]
[TimeControl "180+1"]
[Date "2023.08.08"]
[WhiteClock "0:00:18"]
[BlackClock "0:00:00"]
[Board "3"]

1. d4 {[%clk 0:03:00]}  Nf6 {[%clk 0:03:00]} 2. c4 {[%clk 0:03:01]}  e6 {[%clk 0:03:00]} 3. Nf3 {[%clk 0:03:02]}  d5 {[%clk 0:02:55]} 4. g3 {[%clk 0:03:02]}  Bb4+ {[%clk 0:02:52]} 5. Bd2 {[%clk 0:03:02]}  Be7 {[%clk 0:02:53]} 6. Bg2 {[%clk 0:03:03]}  O-O {[%clk 0:02:54]} 7. O-O {[%clk 0:03:03]}  c6 {[%clk 0:02:54]} 8. Qc2 {[%clk 0:02:55]}  b6 {[%clk 0:02:54]} 9. Nc3 {[%clk 0:02:50]}  Ba6 {[%clk 0:02:43]} 10. cxd5 {[%clk 0:02:47]}  cxd5 {[%clk 0:02:42]} 11. Ne5 {[%clk 0:02:48]}  Bb7 {[%clk 0:02:39]} 12. Rfc1 {[%clk 0:02:24]}  Nfd7 {[%clk 0:02:34]} 13. Nd3 {[%clk 0:02:21]}  Nc6 {[%clk 0:02:32]} 14. e3 {[%clk 0:02:21]}  Rc8 {[%clk 0:02:29]} 15. Qa4 {[%clk 0:02:21]}  a6 {[%clk 0:02:27]} 16. Ne2 {[%clk 0:02:21]}  b5 {[%clk 0:02:13]} 17. Qd1 {[%clk 0:02:19]}  Qb6 {[%clk 0:02:12]} 18. Rc2 {[%clk 0:02:09]}  Na5 {[%clk 0:02:04]} 19. b3 {[%clk 0:01:58]}  Rxc2 {[%clk 0:02:02]} 20. Qxc2 {[%clk 0:01:59]}  Rc8 {[%clk 0:01:54]} 21. Qd1 {[%clk 0:01:59]}  Nc6 {[%clk 0:01:39]} 22. b4 {[%clk 0:01:56]}  Qd8 {[%clk 0:01:23]} 23. Nc5 {[%clk 0:01:55]}  Nxc5 {[%clk 0:01:23]} 24. bxc5 {[%clk 0:01:52]}  Na5 {[%clk 0:01:23]} 25. a4 {[%clk 0:01:45]}  Nc4 {[%clk 0:01:20]} 26. axb5 {[%clk 0:01:44]}  axb5 {[%clk 0:01:21]} 27. Bb4 {[%clk 0:01:44]}  Ra8 {[%clk 0:01:20]} 28. Nc3 {[%clk 0:01:40]}  Bc6 {[%clk 0:01:20]} 29. Qb1 {[%clk 0:01:30]}  Bf6 {[%clk 0:01:16]} 30. Rxa8 {[%clk 0:01:17]}  Qxa8 {[%clk 0:01:15]} 31. Qa2 {[%clk 0:01:17]}  Qb7 {[%clk 0:01:04]} 32. Ne2 {[%clk 0:01:12]}  g5 {[%clk 0:00:52]} 33. Nc1 {[%clk 0:01:08]}  e5 {[%clk 0:00:46]} 34. Nb3 {[%clk 0:01:07]}  exd4 {[%clk 0:00:26]} 35. Nxd4 {[%clk 0:01:05]}  Bxd4 {[%clk 0:00:27]} 36. exd4 {[%clk 0:01:06]}  Qe7 {[%clk 0:00:27]} 37. Qb1 {[%clk 0:00:43]}  Qe6 {[%clk 0:00:21]} 38. Bf1 {[%clk 0:00:39]}  h6 {[%clk 0:00:20]} 39. Qe1 {[%clk 0:00:36]}  Qf6 {[%clk 0:00:18]} 40. Bc3 {[%clk 0:00:33]}  Bd7 {[%clk 0:00:15]} 41. Bg2 {[%clk 0:00:32]}  Be6 {[%clk 0:00:10]} 42. Qb1 {[%clk 0:00:29]}  Qg6 {[%clk 0:00:04]} 43. Qxb5 {[%clk 0:00:20]}  Qc2 {[%clk 0:00:04]} 44. Qb4 {[%clk 0:00:20]}  Qd1+ {[%clk 0:00:04]} 45. Be1 {[%clk 0:00:21]}  Qxd4 {[%clk 0:00:03]} 46. c6 {[%clk 0:00:21]}  Qe5 {[%clk 0:00:04]} 47. Bc3 {[%clk 0:00:19]}  Qc7 {[%clk 0:00:02]} 48. Qc5 {[%clk 0:00:18]}  Qc8 {[%clk 0:00:01]} 49. Bxd5 {[%clk 0:00:16]}  Bxd5 {[%clk 0:00:02]} 50. Qxd5 {[%clk 0:00:17]}  Nb6 {[%clk 0:00:00]} 51. Qd4 {[%clk 0:00:18]} 1-0


[Site "https://www.chess.com"]

[Event "Titled Tuesday Blitz August 08 Early 2023"]
[White "Yeletsky, Ivan"]
[Black "Grischuk, Alexander"]
[WhiteFideId "24180327"]
[BlackFideId "4126025"]
[WhiteElo "2888"]
[BlackElo "3044"]
[Result "1-0"]
[Round "10"]
[TimeControl "180+1"]
[Date "2023.08.08"]
[WhiteClock "0:01:21"]
[BlackClock "0:00:17"]
[Board "4"]

1. e4 {[%clk 0:03:00]}  e5 {[%clk 0:02:58]} 2. Nf3 {[%clk 0:03:00]}  Nc6 {[%clk 0:02:59]} 3. Bb5 {[%clk 0:03:00]}  a6 {[%clk 0:02:59]} 4. Ba4 {[%clk 0:03:00]}  Bc5 {[%clk 0:02:59]} 5. c3 {[%clk 0:02:58]}  Nge7 {[%clk 0:02:59]} 6. O-O {[%clk 0:02:57]}  Ng6 {[%clk 0:02:48]} 7. d4 {[%clk 0:02:57]}  Ba7 {[%clk 0:02:48]} 8. Bg5 {[%clk 0:02:57]}  f6 {[%clk 0:02:48]} 9. Be3 {[%clk 0:02:58]}  O-O {[%clk 0:02:47]} 10. Nbd2 {[%clk 0:02:58]}  d6 {[%clk 0:02:47]} 11. h3 {[%clk 0:02:58]}  Kh8 {[%clk 0:02:46]} 12. Re1 {[%clk 0:02:58]}  Bd7 {[%clk 0:02:46]} 13. Rc1 {[%clk 0:02:46]}  Qe8 {[%clk 0:02:41]} 14. Bc2 {[%clk 0:02:42]}  a5 {[%clk 0:02:40]} 15. a3 {[%clk 0:02:41]}  Qc8 {[%clk 0:02:37]} 16. Nf1 {[%clk 0:02:23]}  exd4 {[%clk 0:02:19]} 17. cxd4 {[%clk 0:02:23]}  f5 {[%clk 0:02:19]} 18. exf5 {[%clk 0:02:23]}  Bxf5 {[%clk 0:02:19]} 19. Bxf5 {[%clk 0:02:23]}  Qxf5 {[%clk 0:02:08]} 20. Qb3 {[%clk 0:02:08]}  Bb6 {[%clk 0:01:53]} 21. Ng3 {[%clk 0:02:08]}  Qf7 {[%clk 0:01:46]} 22. d5 {[%clk 0:01:56]}  Nce5 {[%clk 0:01:38]} 23. Ng5 {[%clk 0:01:55]}  Qd7 {[%clk 0:01:28]} 24. Bxb6 {[%clk 0:01:53]}  a4 {[%clk 0:01:20]} 25. Qe3 {[%clk 0:01:46]}  cxb6 {[%clk 0:01:18]} 26. Ne6 {[%clk 0:01:44]}  Rfc8 {[%clk 0:01:14]} 27. Nf5 {[%clk 0:01:44]}  b5 {[%clk 0:00:21]} 28. Nfxg7 {[%clk 0:01:43]}  Rc4 {[%clk 0:00:20]} 29. Nf5 {[%clk 0:01:39]}  Rg8 {[%clk 0:00:18]} 30. Rxc4 {[%clk 0:01:28]}  bxc4 {[%clk 0:00:18]} 31. f4 {[%clk 0:01:24]}  Nd3 {[%clk 0:00:16]} 32. Qd4+ {[%clk 0:01:24]}  Nge5 {[%clk 0:00:17]} 33. fxe5 {[%clk 0:01:21]}  dxe5 {[%clk 0:00:17]} 34. Rxe5 {[%clk 0:01:21]} 1-0


[Site "https://www.chess.com"]

[Event "Titled Tuesday Blitz August 08 Early 2023"]
[White "Caruana, Fabiano"]
[Black "Kushko, Dmitriy"]
[WhiteFideId "2020009"]
[BlackFideId "14162261"]
[WhiteElo "3097"]
[BlackElo "2849"]
[Result "1-0"]
[Round "10"]
[TimeControl "180+1"]
[Date "2023.08.08"]
[WhiteClock "0:00:19"]
[BlackClock "0:00:04"]
[Board "6"]

1. e4 {[%clk 0:03:00]}  g6 {[%clk 0:03:00]} 2. d4 {[%clk 0:03:00]}  Bg7 {[%clk 0:03:00]} 3. Nc3 {[%clk 0:03:01]}  d6 {[%clk 0:03:00]} 4. Be3 {[%clk 0:03:02]}  a6 {[%clk 0:03:00]} 5. g4 {[%clk 0:03:02]}  b5 {[%clk 0:02:51]} 6. Bg2 {[%clk 0:03:02]}  Bb7 {[%clk 0:02:51]} 7. h4 {[%clk 0:03:03]}  Nd7 {[%clk 0:02:50]} 8. h5 {[%clk 0:03:02]}  c5 {[%clk 0:02:44]} 9. h6 {[%clk 0:02:53]}  Bxd4 {[%clk 0:02:14]} 10. Bxd4 {[%clk 0:02:54]}  cxd4 {[%clk 0:02:15]} 11. Qxd4 {[%clk 0:02:54]}  e5 {[%clk 0:02:00]} 12. Qxd6 {[%clk 0:02:52]}  Qe7 {[%clk 0:01:56]} 13. O-O-O {[%clk 0:02:47]}  Qxd6 {[%clk 0:01:55]} 14. Rxd6 {[%clk 0:02:48]}  Ke7 {[%clk 0:01:56]} 15. Rd2 {[%clk 0:02:47]}  Ngf6 {[%clk 0:01:40]} 16. g5 {[%clk 0:02:47]}  Nh5 {[%clk 0:01:41]} 17. Nge2 {[%clk 0:02:43]}  Rhd8 {[%clk 0:01:39]} 18. Nd5+ {[%clk 0:02:33]}  Bxd5 {[%clk 0:01:27]} 19. exd5 {[%clk 0:02:34]}  Kd6 {[%clk 0:01:25]} 20. Nc3 {[%clk 0:02:34]}  f5 {[%clk 0:01:24]} 21. gxf6 {[%clk 0:02:26]}  Ndxf6 {[%clk 0:01:23]} 22. Ne4+ {[%clk 0:02:15]}  Nxe4 {[%clk 0:01:23]} 23. Bxe4 {[%clk 0:02:16]}  Rf8 {[%clk 0:01:10]} 24. Rh3 {[%clk 0:01:55]}  Rf4 {[%clk 0:01:02]} 25. Re3 {[%clk 0:01:39]}  Rh4 {[%clk 0:00:58]} 26. b3 {[%clk 0:01:32]}  Nf6 {[%clk 0:00:51]} 27. Bg2 {[%clk 0:01:29]}  Rxh6 {[%clk 0:00:51]} 28. Rc3 {[%clk 0:01:27]}  Rh2 {[%clk 0:00:24]} 29. Rc6+ {[%clk 0:01:26]}  Kd7 {[%clk 0:00:24]} 30. f4 {[%clk 0:01:21]}  Ng4 {[%clk 0:00:19]} 31. d6 {[%clk 0:01:13]}  Rc8 {[%clk 0:00:13]} 32. Rxa6 {[%clk 0:00:48]}  exf4 {[%clk 0:00:13]} 33. Ra7+ {[%clk 0:00:34]}  Ke6 {[%clk 0:00:14]} 34. Bf3 {[%clk 0:00:23]}  Rh4 {[%clk 0:00:14]} 35. Re7+ {[%clk 0:00:20]}  Kf6 {[%clk 0:00:14]} 36. d7 {[%clk 0:00:19]}  Rd8 {[%clk 0:00:14]} 37. Re8 {[%clk 0:00:19]}  Rxd7 {[%clk 0:00:07]} 38. Rxd7 {[%clk 0:00:20]}  Ne5 {[%clk 0:00:04]} 39. Rd6+ {[%clk 0:00:19]} 1-0


[Site "https://www.chess.com"]

[Event "Titled Tuesday Blitz August 08 Early 2023"]
[White "Sarana, Alexey"]
[Black "Rasulov, Vugar"]
[WhiteFideId "24133795"]
[BlackFideId "13402390"]
[WhiteElo "3078"]
[BlackElo "2847"]
[Result "1-0"]
[Round "10"]
[TimeControl "180+1"]
[Date "2023.08.08"]
[WhiteClock "0:01:56"]
[BlackClock "0:00:49"]
[Board "7"]

1. d4 {[%clk 0:02:57]}  d5 {[%clk 0:03:00]} 2. c4 {[%clk 0:02:57]}  e6 {[%clk 0:03:00]} 3. Nc3 {[%clk 0:02:58]}  a6 {[%clk 0:03:00]} 4. cxd5 {[%clk 0:02:57]}  exd5 {[%clk 0:03:01]} 5. Bf4 {[%clk 0:02:58]}  c6 {[%clk 0:03:00]} 6. e3 {[%clk 0:02:58]}  Bd6 {[%clk 0:03:00]} 7. Bxd6 {[%clk 0:02:59]}  Qxd6 {[%clk 0:03:01]} 8. Bd3 {[%clk 0:02:59]}  Ne7 {[%clk 0:02:59]} 9. Nf3 {[%clk 0:02:59]}  Bf5 {[%clk 0:02:56]} 10. Qb3 {[%clk 0:02:59]}  Bxd3 {[%clk 0:02:48]} 11. Qxb7 {[%clk 0:02:59]}  O-O {[%clk 0:02:48]} 12. Qxa8 {[%clk 0:02:59]}  Qc7 {[%clk 0:02:35]} 13. Ne5 {[%clk 0:02:58]}  Bc4 {[%clk 0:02:20]} 14. Nxc4 {[%clk 0:02:27]}  dxc4 {[%clk 0:02:21]} 15. O-O {[%clk 0:02:27]}  Nc8 {[%clk 0:02:06]} 16. Na4 {[%clk 0:02:27]}  Nb6 {[%clk 0:02:06]} 17. Nxb6 {[%clk 0:02:15]}  Qxb6 {[%clk 0:02:07]} 18. d5 {[%clk 0:02:14]}  c5 {[%clk 0:02:00]} 19. Rac1 {[%clk 0:02:07]}  Rc8 {[%clk 0:00:55]} 20. Rxc4 {[%clk 0:01:59]}  Kf8 {[%clk 0:00:49]} 21. b4 {[%clk 0:01:56]} 1-0


[Site "https://www.chess.com"]

[Event "Titled Tuesday Blitz August 08 Early 2023"]
[White "Indjic, Aleksandar"]
[Black "Jaracz, Pawel"]
[WhiteFideId "911925"]
[BlackFideId "1102222"]
[WhiteElo "2937"]
[BlackElo "2760"]
[Result "1-0"]
[Round "10"]
[TimeControl "180+1"]
[Date "2023.08.08"]
[WhiteClock "0:00:06"]
[BlackClock "0:00:04"]
[Board "13"]

1. e4 {[%clk 0:03:00]}  c5 {[%clk 0:02:58]} 2. Nf3 {[%clk 0:02:58]}  e6 {[%clk 0:02:55]} 3. d4 {[%clk 0:02:58]}  cxd4 {[%clk 0:02:54]} 4. Nxd4 {[%clk 0:02:59]}  a6 {[%clk 0:02:54]} 5. Nc3 {[%clk 0:02:59]}  d6 {[%clk 0:02:54]} 6. g4 {[%clk 0:02:57]}  b5 {[%clk 0:02:54]} 7. g5 {[%clk 0:02:57]}  Bb7 {[%clk 0:02:54]} 8. a3 {[%clk 0:02:57]}  Nd7 {[%clk 0:02:54]} 9. h4 {[%clk 0:02:56]}  Rc8 {[%clk 0:02:53]} 10. Bg2 {[%clk 0:02:54]}  Ne7 {[%clk 0:02:40]} 11. h5 {[%clk 0:02:42]}  Nc6 {[%clk 0:02:34]} 12. Nde2 {[%clk 0:02:26]}  Be7 {[%clk 0:02:21]} 13. f4 {[%clk 0:02:25]}  Qb6 {[%clk 0:02:21]} 14. Rh3 {[%clk 0:02:22]}  Na5 {[%clk 0:02:13]} 15. Be3 {[%clk 0:02:20]}  Qc7 {[%clk 0:02:10]} 16. b3 {[%clk 0:02:20]}  Nc6 {[%clk 0:02:04]} 17. Qd2 {[%clk 0:02:18]}  b4 {[%clk 0:01:59]} 18. axb4 {[%clk 0:02:12]}  Nxb4 {[%clk 0:01:59]} 19. Kf1 {[%clk 0:02:11]}  O-O {[%clk 0:01:57]} 20. Kg1 {[%clk 0:02:11]}  Rfd8 {[%clk 0:01:41]} 21. Bf2 {[%clk 0:01:43]}  Bf8 {[%clk 0:01:37]} 22. Rc1 {[%clk 0:01:29]}  Nc5 {[%clk 0:01:35]} 23. Nd4 {[%clk 0:01:22]}  e5 {[%clk 0:01:31]} 24. Nf5 {[%clk 0:01:22]}  g6 {[%clk 0:01:27]} 25. hxg6 {[%clk 0:01:21]}  hxg6 {[%clk 0:01:22]} 26. Nh6+ {[%clk 0:01:20]}  Bxh6 {[%clk 0:01:22]} 27. gxh6 {[%clk 0:01:14]}  Ne6 {[%clk 0:01:16]} 28. Ne2 {[%clk 0:01:13]}  Na2 {[%clk 0:01:15]} 29. Ra1 {[%clk 0:01:13]}  Qxc2 {[%clk 0:01:02]} 30. Rxa2 {[%clk 0:01:13]}  Qb1+ {[%clk 0:01:03]} 31. Kh2 {[%clk 0:01:12]}  Bxe4 {[%clk 0:00:57]} 32. Rb2 {[%clk 0:01:10]}  Rc2 {[%clk 0:00:49]} 33. h7+ {[%clk 0:01:01]}  Kh8 {[%clk 0:00:48]} 34. Qxc2 {[%clk 0:00:57]}  Qxc2 {[%clk 0:00:40]} 35. Rxc2 {[%clk 0:00:57]}  Bxc2 {[%clk 0:00:41]} 36. Bh4 {[%clk 0:00:57]}  g5 {[%clk 0:00:39]} 37. fxg5 {[%clk 0:00:58]}  Bg6 {[%clk 0:00:37]} 38. Bd5 {[%clk 0:00:55]}  Ng7 {[%clk 0:00:35]} 39. Rc3 {[%clk 0:00:50]}  Nf5 {[%clk 0:00:33]} 40. Bf2 {[%clk 0:00:49]}  Kxh7 {[%clk 0:00:31]} 41. Rc7 {[%clk 0:00:48]}  Kg7 {[%clk 0:00:31]} 42. Nc3 {[%clk 0:00:46]}  Rb8 {[%clk 0:00:29]} 43. Ne4 {[%clk 0:00:42]}  Rb5 {[%clk 0:00:27]} 44. Bc4 {[%clk 0:00:42]}  Ra5 {[%clk 0:00:27]} 45. Nc3 {[%clk 0:00:27]}  Ra1 {[%clk 0:00:20]} 46. Rd7 {[%clk 0:00:12]}  Rc1 {[%clk 0:00:18]} 47. Ne4 {[%clk 0:00:12]}  Rc2 {[%clk 0:00:18]} 48. Kg1 {[%clk 0:00:12]}  Nd4 {[%clk 0:00:18]} 49. Bxd4 {[%clk 0:00:11]}  Bxe4 {[%clk 0:00:18]} 50. Be3 {[%clk 0:00:11]}  d5 {[%clk 0:00:18]} 51. Bxd5 {[%clk 0:00:10]}  Rc3 {[%clk 0:00:08]} 52. Rxf7+ {[%clk 0:00:10]}  Kg6 {[%clk 0:00:08]} 53. Rf6+ {[%clk 0:00:10]}  Kh5 {[%clk 0:00:06]} 54. Bxe4 {[%clk 0:00:05]}  Rxe3 {[%clk 0:00:07]} 55. Bb7 {[%clk 0:00:04]}  Kxg5 {[%clk 0:00:07]} 56. Rb6 {[%clk 0:00:04]}  e4 {[%clk 0:00:07]} 57. Kf2 {[%clk 0:00:04]}  Rf3+ {[%clk 0:00:07]} 58. Ke2 {[%clk 0:00:05]}  Kf4 {[%clk 0:00:07]} 59. Rf6+ {[%clk 0:00:05]}  Ke5 {[%clk 0:00:06]} 60. Rxf3 {[%clk 0:00:05]}  exf3+ {[%clk 0:00:07]} 61. Kxf3 {[%clk 0:00:05]}  a5 {[%clk 0:00:07]} 62. Bc6 {[%clk 0:00:05]}  Kd4 {[%clk 0:00:04]} 63. Ba4 {[%clk 0:00:06]} 1-0


[Site "https://www.chess.com"]

[Event "Titled Tuesday Blitz August 08 Early 2023"]
[White "Gholami Orimi, Mahdi"]
[Black "Nazari, Arad"]
[WhiteFideId "12558486"]
[BlackFideId "12577324"]
[WhiteElo "2906"]
[BlackElo "2757"]
[Result "1-0"]
[Round "10"]
[TimeControl "180+1"]
[Date "2023.08.08"]
[WhiteClock "0:01:00"]
[BlackClock "0:00:14"]
[Board "14"]

1. f4 {[%clk 0:03:00]}  Nh6 {[%clk 0:02:58]} 2. e4 {[%clk 0:03:00]}  g6 {[%clk 0:02:58]} 3. Nf3 {[%clk 0:02:59]}  d5 {[%clk 0:02:57]} 4. exd5 {[%clk 0:02:58]}  Qxd5 {[%clk 0:02:57]} 5. Nc3 {[%clk 0:02:58]}  Qa5 {[%clk 0:02:49]} 6. d4 {[%clk 0:02:54]}  Bg7 {[%clk 0:02:36]} 7. Bc4 {[%clk 0:02:54]}  O-O {[%clk 0:02:22]} 8. O-O {[%clk 0:02:54]}  c5 {[%clk 0:02:18]} 9. Nd5 {[%clk 0:02:32]}  cxd4 {[%clk 0:01:56]} 10. Nxe7+ {[%clk 0:02:21]}  Kh8 {[%clk 0:01:56]} 11. Nxc8 {[%clk 0:02:21]}  Rxc8 {[%clk 0:01:50]} 12. Bb3 {[%clk 0:02:22]}  Nc6 {[%clk 0:01:43]} 13. f5 {[%clk 0:02:17]}  Nxf5 {[%clk 0:01:36]} 14. Ng5 {[%clk 0:02:11]}  Ne5 {[%clk 0:01:28]} 15. Bf4 {[%clk 0:01:45]}  Ne3 {[%clk 0:01:09]} 16. Qe2 {[%clk 0:01:43]}  Rf8 {[%clk 0:00:48]} 17. Bxe5 {[%clk 0:01:33]}  Bxe5 {[%clk 0:00:48]} 18. Nxf7+ {[%clk 0:01:34]}  Kg7 {[%clk 0:00:48]} 19. Rf3 {[%clk 0:01:33]}  Rae8 {[%clk 0:00:25]} 20. Kh1 {[%clk 0:01:14]}  Bc7 {[%clk 0:00:23]} 21. Qd3 {[%clk 0:01:03]}  Qc5 {[%clk 0:00:18]} 22. c3 {[%clk 0:01:02]}  Qd6 {[%clk 0:00:14]} 23. Nxd6 {[%clk 0:01:00]} 1-0


[Site "https://www.chess.com"]

[Event "Titled Tuesday Blitz August 08 Early 2023"]
[White "Korchmar, Vasiliy"]
[Black "Baskakov, Egor"]
[WhiteFideId "24131750"]
[BlackFideId "24197866"]
[WhiteElo "2723"]
[BlackElo "2883"]
[Result "1-0"]
[Round "10"]
[TimeControl "180+1"]
[Date "2023.08.08"]
[WhiteClock "0:02:00"]
[BlackClock "0:01:53"]
[Board "15"]

1. e4 {[%clk 0:03:00]}  c5 {[%clk 0:03:00]} 2. d4 {[%clk 0:02:59]}  cxd4 {[%clk 0:02:59]} 3. Qxd4 {[%clk 0:03:00]}  Nc6 {[%clk 0:02:58]} 4. Qd3 {[%clk 0:03:00]}  g6 {[%clk 0:02:59]} 5. Nc3 {[%clk 0:03:00]}  Bg7 {[%clk 0:03:00]} 6. Nf3 {[%clk 0:03:01]}  Nf6 {[%clk 0:03:00]} 7. Be2 {[%clk 0:03:01]}  O-O {[%clk 0:03:01]} 8. O-O {[%clk 0:03:02]}  d6 {[%clk 0:03:01]} 9. Nd5 {[%clk 0:03:02]}  Bg4 {[%clk 0:02:53]} 10. c3 {[%clk 0:02:58]}  e6 {[%clk 0:02:50]} 11. Nxf6+ {[%clk 0:02:49]}  Bxf6 {[%clk 0:02:51]} 12. Bh6 {[%clk 0:02:45]}  Re8 {[%clk 0:02:48]} 13. Rad1 {[%clk 0:02:43]}  Ne5 {[%clk 0:02:37]} 14. Nxe5 {[%clk 0:02:40]}  Bxe2 {[%clk 0:02:34]} 15. Qxe2 {[%clk 0:02:38]}  Bxe5 {[%clk 0:02:35]} 16. f4 {[%clk 0:02:33]}  Bg7 {[%clk 0:02:32]} 17. Bxg7 {[%clk 0:02:32]}  Kxg7 {[%clk 0:02:33]} 18. Qe3 {[%clk 0:02:25]}  Qa5 {[%clk 0:02:29]} 19. Rxd6 {[%clk 0:02:15]}  Qxa2 {[%clk 0:02:27]} 20. f5 {[%clk 0:02:02]}  exf5 {[%clk 0:02:25]} 21. Qd4+ {[%clk 0:02:01]}  Kg8 {[%clk 0:02:26]} 22. exf5 {[%clk 0:02:02]}  Qxb2 {[%clk 0:01:59]} 23. fxg6 {[%clk 0:02:01]}  hxg6 {[%clk 0:02:00]} 24. Qd5 {[%clk 0:02:01]}  Rf8 {[%clk 0:01:53]} 25. Rxg6+ {[%clk 0:02:00]} 1-0


[Site "https://www.chess.com"]